fUSD/lending_fUSD_20240408
["ID","MTS","AMOUNT","RATE_DAILY","PERIOD"]
[321873786,1712579460469,-150.0,0.00028879,10]
[321873787,1712579460479,-4530397.97565501,0.0002888,2]
[321873788,1712579460498,-2048473.76093106,0.0002888,2]
[321873789,1712579460551,-4004.8,0.0002888,2]
[321873790,1712579460563,-7274.5,0.0002888,2]
[321873791,1712579461135,-607.0,0.00023753,2]
[321873792,1712579461145,-151.0,0.0002878,7]
[321873793,1712579461154,-2977.42696625,0.0002888,2]
[321873794,1712579462421,-48116.98153597,0.0002888,2]
[321873795,1712579462470,-913.725,0.0002888,2]
[321873796,1712579462534,-1837.3319849,0.0002888,2]
[321873797,1712579462545,-2020.05105281,0.0002888,2]
[321873798,1712579462592,-53345.4864885,0.0002888,2]
[321873799,1712579462605,-1044.677349,0.0002888,2]
[321873800,1712579462617,-1048.4999997,0.0002888,2]
[321873801,1712579462631,-450.373804,0.0002888,2]
[321873802,1712579462861,-711.469513,0.0002888,2]
[321873803,1712579462874,-52447.27424,0.0002888,2]
[321873804,1712579462923,-23659.37147496,0.0002888,2]
[321873805,1712579462936,-298833.99,0.0002888,2]
[321873806,1712579462948,-7279.91928001,0.0002888,2]
[321873807,1712579463040,-605.0,0.00026753,2]
[321873808,1712579463050,-14037.814496,0.0002888,2]
[321873809,1712579465501,-155.0,0.00021186,2]
[321873810,1712579465511,-245.6043875,0.00021196,2]
[321873811,1712579465520,-475.76753059,0.00021196,2]
[321873812,1712579465530,-1048.0,0.00023753,2]
[321873813,1712579465540,-232.233929,0.00027388,7]
[321873814,1712579465550,-527.88834,0.0002788,7]
[321873815,1712579465560,-527.88834,0.00028589,7]
[321873816,1712579465570,-232.233929,0.00028589,7]
[321873817,1712579465580,-232.233929,0.00028682,7]
[321873818,1712579465590,-527.88834,0.0002878,7]
[321873819,1712579465600,-527.88834,0.0002886,7]
[321873820,1712579465610,-527.88834,0.0002886,7]
[321873821,1712579465827,-232.233929,0.0002886,7]
[321873822,1712579465856,-232.233929,0.0002886,7]
[321873823,1712579465866,-527.88834,0.00028876,7]
[321873824,1712579465876,-7146.49016432,0.0002888,2]
[321873825,1712579465891,-14574.6912,0.0002888,2]
[321873826,1712579465904,-1914.58341318,0.0002888,2]
[321873827,1712579465916,-5759.7954,0.0002888,2]
[321873828,1712579465927,-906.4145283,0.0002888,2]
[321873829,1712579465940,-1434.26779262,0.0002888,2]
[321873830,1712579465951,-550.545,0.0002888,2]
[321873831,1712579466006,-527.88834,0.0002788,7]
[321873832,1712579466016,-74652.84226,0.0002888,2]
[321873833,1712579466028,-14262.27826,0.0002888,2]
[321873834,1712579466059,-255.58367185,0.0002888,2]
[321873835,1712579489573,506.0,0.00020548,2]
[321873836,1712579533315,-314.040819,0.00031408,31]
[321873837,1712579533369,-10004.0,0.00032,30]
[321873838,1712579533413,-1000.0,0.00032,30]
[321873839,1712579533469,-314.040819,0.00032408,32]
[321873840,1712579533517,-150.0,0.00032756,120]
[321873841,1712579533570,-424.67641976,0.00032877,30]
[321873842,1712579533616,-170.63638608,0.000329,30]
[321873843,1712579533658,-4340.94328,0.00032916,30]
[321873844,1712579533701,-600.0,0.00033,34]
[321873845,1712579533744,-653.67819699,0.00033,33]
[321873846,1712579533788,-424.67641976,0.00033014,30]
[321873847,1712579533832,-424.67641976,0.00033151,30]
[321873848,1712579533879,-424.67641976,0.00033288,30]
[321873849,1712579533922,-314.040819,0.00033408,33]
[321873850,1712579533962,-424.67641976,0.00033425,30]
[321873851,1712579534009,-424.67641976,0.00033562,30]
[321873852,1712579534056,-424.67641976,0.00033699,30]
[321873853,1712579534098,-823.96,0.0003377,30]
[321873854,1712579534142,-823.96,0.0003377,30]
[321873855,1712579534183,-823.96,0.0003377,30]
[321873856,1712579534225,-823.96,0.0003377,30]
[321873857,1712579534268,-424.67641976,0.00033836,30]
[321873858,1712579534316,-600.0,0.00034,35]
[321873859,1712579534356,-37.05844671,0.00034,34]
[321873860,1712580016498,151.0,0.00028721,30]
[321873861,1712580016572,151.0,0.00028147,120]
[321873862,1712580018186,442.5921,0.00024986,10]
[321873863,1712580061052,-960.55570705,0.0003406,30]
[321873864,1712580061080,-3810.33795889,0.0003406,30]
[321873865,1712580061106,-1543.48181665,0.0003406,30]
[321873866,1712580061131,-1366.4453301,0.0003406,30]
[321873867,1712580061157,-265.5505479,0.0003406,30]
[321873868,1712580061181,-179.96837,0.0003406,120]
[321873869,1712580061207,-3314.22824678,0.0003406,30]
[321873870,1712580061232,-2044.61876534,0.0003406,30]
[321873871,1712580061258,-2189.62563635,0.0003406,30]
[321873872,1712580061281,-2150.76357005,0.0003406,31]
[321873873,1712580061305,-236.96480834,0.0003406,120]
[321873874,1712580061332,-393.03288359,0.0003406,120]
[321873875,1712580061357,-328.73735065,0.0003406,30]
[321873876,1712580061383,-293.35788565,0.0003406,120]
[321873877,1712580061406,-600.55400102,0.0003406,30]
[321873878,1712580061431,-479.19476045,0.0003406,120]
[321873879,1712580061457,-792.90798864,0.0003406,120]
[321873880,1712580061700,-150.04365381,0.0003406,30]
[321873881,1712580061725,-1028.84190303,0.0003406,120]
[321873882,1712580061748,-325.27662446,0.0003406,30]
[321873883,1712580061772,-221.85809582,0.0003406,30]
[321873884,1712580061797,-2625.88891968,0.0003406,120]
[321873885,1712580061821,-441.00576104,0.0003406,120]
[321873886,1712580061846,-377.36852835,0.0003406,120]
[321873887,1712580061871,-641.97653295,0.0003406,30]
[321873888,1712580061896,-2513.41216354,0.0003406,120]
[321873889,1712580061921,-554.89339995,0.0003406,30]
[321873890,1712580061947,-3615.65665323,0.0003406,30]
[321873891,1712580061972,-2003.2984918,0.0003406,30]
[321873892,1712580061998,-3277.25477812,0.0003406,120]
[321873893,1712580062034,-695.29985181,0.0003406,30]
[321873894,1712580062060,-294.94293654,0.0003406,30]
[321873895,1712580062085,-419.36346997,0.0003406,120]
[321873896,1712580062111,-1959863.29260845,0.0003406,120]
[321873897,1712580067836,-269837.10739155,0.0003406,120]
[321873898,1712580067862,-150.27053947,0.0003406,120]
[321873899,1712580067888,-500.0,0.0003406,30]
[321873900,1712580067913,-500.0,0.0003406,30]
[321873901,1712580067940,-599.29967133,0.0003406,30]
[321873902,1712580067965,-500.0,0.0003406,30]
[321873903,1712580067990,-500.0,0.0003406,30]
[321873904,1712580068015,-500.0,0.0003406,30]
[321873905,1712580068043,-164.4,0.0003406,30]
[321873906,1712580068068,-500.0,0.0003406,30]
[321873907,1712580068096,-500.0,0.0003406,30]
[321873908,1712580068120,-65939.52810322,0.0003406,30]
[321873909,1712580068146,-394.00171825,0.0003406,30]
[321873910,1712580068171,-1190.03197531,0.0003406,60]
[321873911,1712580068197,-88914.07343141,0.0003406,30]
[321873912,1712580068223,-33182.16238066,0.0003406,120]
[321873913,1712580068248,-10824.1633309,0.0003406,120]
[321873914,1712580068273,-89772.48512438,0.0003406,120]
[321873915,1712580068298,-1208.34,0.0003406,30]
[321873916,1712580068322,-1208.34,0.0003406,30]
[321873917,1712580068347,-1208.34,0.0003406,30]
[321873918,1712580068374,-1208.34,0.0003406,30]
[321873919,1712580068399,-1208.34,0.0003406,30]
[321873920,1712580068424,-1208.34,0.0003406,30]
[321873921,1712580068448,-1208.34,0.0003406,30]
[321873922,1712580068474,-1208.34,0.0003406,30]
[321873923,1712580068500,-1208.34,0.0003406,30]
[321873924,1712580068525,-1208.34,0.0003406,30]
[321873925,1712580068549,-1208.34,0.0003406,30]
[321873926,1712580068574,-1208.34,0.0003406,30]
[321873927,1712580068796,-1208.34,0.0003406,30]
[321873928,1712580068830,-1208.34,0.0003406,30]
[321873929,1712580068855,-1208.34,0.0003406,30]
[321873930,1712580068880,-1208.34,0.0003406,30]
[321873931,1712580068905,-1208.34,0.0003406,30]
[321873932,1712580068930,-1208.34,0.0003406,30]
[321873933,1712580068956,-1208.34,0.0003406,30]
[321873934,1712580068980,-1208.34,0.0003406,30]
[321873935,1712580069004,-1208.34,0.0003406,30]
[321873936,1712580069030,-1208.34,0.0003406,30]
[321873937,1712580069054,-1208.34,0.0003406,30]
[321873938,1712580069079,-1208.40391137,0.0003406,30]
[321873939,1712580069105,-2100.0,0.0003406,30]
[321873940,1712580069130,-2000.0,0.0003406,120]
[321873941,1712580069155,-177.4734038,0.0003406,120]
[321873942,1712580069180,-1622.58787778,0.0003406,60]
[321873943,1712580069205,-504.51455107,0.0003406,30]
[321873944,1712580069230,-221.90090434,0.0003406,30]
[321873945,1712580069254,-519.57019773,0.0003406,30]
[321873946,1712580069278,-500.0,0.0003406,30]
[321873947,1712580069304,-500.0,0.0003406,30]
[321873948,1712580069328,-500.0,0.0003406,30]
[321873949,1712580069353,-598.22168244,0.0003406,30]
[321873950,1712580069377,-500.0,0.0003406,30]
[321873951,1712580069402,-500.0,0.0003406,30]
[321873952,1712580069426,-500.0,0.0003406,30]
[321873953,1712580069450,-500.0,0.0003406,30]
[321873954,1712580069473,-521.08653915,0.0003406,30]
[321873955,1712580069500,-500.0,0.0003406,30]
[321873956,1712580069524,-456.81478398,0.0003406,30]
[321873957,1712580069547,-406.07849596,0.0003406,30]
[321873958,1712580069571,-523.18586235,0.0003406,30]
[321873959,1712580069595,-641.58032254,0.0003406,30]
[321873960,1712580069619,-500.0,0.0003406,30]
[321873961,1712580069643,-500.0,0.0003406,30]
[321873962,1712580069667,-530.94507208,0.0003406,30]
[321873963,1712580069691,-500.0,0.0003406,30]
[321873964,1712580069715,-500.0,0.0003406,30]
[321873965,1712580069739,-395.63478917,0.0003406,30]
[321873966,1712580069763,-510.79342132,0.0003406,30]
[321873967,1712580069788,-512.94548422,0.0003406,30]
[321873968,1712580069813,-500.0,0.0003406,30]
[321873969,1712580069837,-500.0,0.0003406,30]
[321873970,1712580069860,-500.0,0.0003406,30]
[321873971,1712580069884,-544.56366772,0.0003406,30]
[321873972,1712580069908,-538.89736114,0.0003406,30]
[321873973,1712580069932,-500.0,0.0003406,30]
[321873974,1712580069957,-500.0,0.0003406,30]
[321873975,1712580069982,-500.0,0.0003406,30]
[321873976,1712580070010,-518.922495,0.0003406,30]
[321873977,1712580070039,-301.42854041,0.0003406,30]
[321873978,1712580070066,-500.0,0.0003406,30]
[321873979,1712580070092,-511.32923463,0.0003406,30]
[321873980,1712580070120,-505.71447648,0.0003406,30]
[321873981,1712580070145,-434.58551429,0.0003406,30]
[321873982,1712580070170,-508.43757977,0.0003406,30]
[321873983,1712580070197,-500.0,0.0003406,30]
[321873984,1712580070222,-500.0,0.0003406,30]
[321873985,1712580070248,-500.0,0.0003406,30]
[321873986,1712580070272,-500.0,0.0003406,30]
[321873987,1712580070297,-500.0,0.0003406,30]
[321873988,1712580070329,-500.0,0.0003406,30]
[321873989,1712580070354,-229.88839037,0.0003406,30]
[321873990,1712580070379,-515.83983008,0.0003406,30]
[321873991,1712580070404,-500.0,0.0003406,30]
[321873992,1712580070428,-500.0,0.0003406,30]
[321873993,1712580070452,-500.0,0.0003406,30]
[321873994,1712580070476,-500.0,0.0003406,30]
[321873995,1712580070501,-523.39377079,0.0003406,30]
[321873996,1712580070525,-500.0,0.0003406,30]
[321873997,1712580070548,-507.84185728,0.0003406,30]
[321873998,1712580070572,-500.0,0.0003406,30]
[321873999,1712580070597,-500.0,0.0003406,30]
[321874000,1712580070622,-500.0,0.0003406,30]
[321874001,1712580070646,-500.0,0.0003406,30]
[321874002,1712580070670,-552.76650944,0.0003406,30]
[321874003,1712580070695,-500.0,0.0003406,30]
[321874004,1712580070719,-503.4480576,0.0003406,30]
[321874005,1712580070743,-500.0,0.0003406,30]
[321874006,1712580070768,-500.0,0.0003406,30]
[321874007,1712580070793,-298.40518482,0.0003406,30]
[321874008,1712580070818,-500.0,0.0003406,30]
[321874009,1712580070842,-500.0,0.0003406,30]
[321874010,1712580070866,-500.0,0.0003406,30]
[321874011,1712580071064,-500.0,0.0003406,30]
[321874012,1712580071090,-500.0,0.0003406,30]
[321874013,1712580071116,-492.51126928,0.0003406,30]
[321874014,1712580071144,-500.0,0.0003406,30]
[321874015,1712580071168,-500.0,0.0003406,30]
[321874016,1712580071193,-500.0,0.0003406,30]
[321874017,1712580071219,-500.0,0.0003406,30]
[321874018,1712580071244,-500.0,0.0003406,30]
[321874019,1712580071270,-500.0,0.0003406,30]
[321874020,1712580071295,-500.0,0.0003406,30]
[321874021,1712580071321,-500.0,0.0003406,30]
[321874022,1712580071347,-545.16378871,0.0003406,30]
[321874023,1712580071378,-500.0,0.0003406,30]
[321874024,1712580071405,-234.92369219,0.0003406,30]
[321874025,1712580071434,-500.0,0.0003406,30]
[321874026,1712580071461,-500.0,0.0003406,30]
[321874027,1712580071488,-500.0,0.0003406,30]
[321874028,1712580071515,-500.0,0.0003406,30]
[321874029,1712580071540,-500.0,0.0003406,30]
[321874030,1712580071565,-500.0,0.0003406,30]
[321874031,1712580071591,-176.38931579,0.0003406,30]
[321874032,1712580071616,-500.0,0.0003406,30]
[321874033,1712580071642,-647.52310834,0.0003406,30]
[321874034,1712580071668,-500.0,0.0003406,30]
[321874035,1712580071696,-500.0,0.0003406,30]
[321874036,1712580071721,-500.0,0.0003406,30]
[321874037,1712580071746,-542.01633254,0.0003406,30]
[321874038,1712580071771,-500.0,0.0003406,30]
[321874039,1712580071796,-500.0,0.0003406,30]
[321874040,1712580071824,-500.0,0.0003406,30]
[321874041,1712580071851,-500.0,0.0003406,30]
[321874042,1712580071878,-500.0,0.0003406,30]
[321874043,1712580071905,-500.0,0.0003406,30]
[321874044,1712580071932,-500.0,0.0003406,30]
[321874045,1712580071959,-500.0,0.0003406,30]
[321874046,1712580071985,-500.0,0.0003406,30]
[321874047,1712580072012,-500.0,0.0003406,30]
[321874048,1712580072040,-199.574052,0.0003406,30]
[321874049,1712580072066,-500.0,0.0003406,30]
[321874050,1712580072090,-515.89524708,0.0003406,30]
[321874051,1712580072117,-500.0,0.0003406,30]
[321874052,1712580072142,-531.93716169,0.0003406,30]
[321874053,1712580072168,-520.56144982,0.0003406,30]
[321874054,1712580072197,-500.0,0.0003406,30]
[321874055,1712580072223,-500.0,0.0003406,30]
[321874056,1712580072249,-500.0,0.0003406,30]
[321874057,1712580072274,-500.0,0.0003406,30]
[321874058,1712580072301,-500.0,0.0003406,30]
[321874059,1712580072326,-500.0,0.0003406,30]
[321874060,1712580072352,-549.4888695,0.0003406,30]
[321874061,1712580072383,-500.0,0.0003406,30]
[321874062,1712580072411,-516.84929588,0.0003406,30]
[321874063,1712580072438,-500.0,0.0003406,30]
[321874064,1712580072465,-500.0,0.0003406,30]
[321874065,1712580072490,-519.78475346,0.0003406,30]
[321874066,1712580072517,-500.0,0.0003406,30]
[321874067,1712580072545,-500.0,0.0003406,30]
[321874068,1712580072572,-498.82018041,0.0003406,30]
[321874069,1712580072599,-500.0,0.0003406,30]
[321874070,1712580072626,-500.0,0.0003406,30]
[321874071,1712580072653,-500.0,0.0003406,30]
[321874072,1712580072679,-500.0,0.0003406,30]
[321874073,1712580072705,-528.84688459,0.0003406,30]
[321874074,1712580072737,-500.0,0.0003406,30]
[321874075,1712580072764,-500.0,0.0003406,30]
[321874076,1712580072792,-500.0,0.0003406,30]
[321874077,1712580072819,-500.0,0.0003406,30]
[321874078,1712580072847,-500.0,0.0003406,30]
[321874079,1712580072877,-500.0,0.0003406,30]
[321874080,1712580072905,-500.0,0.0003406,30]
[321874081,1712580072932,-500.0,0.0003406,30]
[321874082,1712580072961,-501.8487476,0.0003406,30]
[321874083,1712580072989,-502.9447084,0.0003406,30]
[321874084,1712580073018,-502.51049265,0.0003406,30]
[321874085,1712580073054,-500.0,0.0003406,30]
[321874086,1712580073086,-500.0,0.0003406,30]
[321874087,1712580073115,-152.85048141,0.0003406,30]
[321874088,1712580073144,-500.0,0.0003406,30]
[321874089,1712580073172,-511.05015547,0.0003406,30]
[321874090,1712580073201,-500.0,0.0003406,30]
[321874091,1712580073228,-500.0,0.0003406,30]
[321874092,1712580073255,-500.0,0.0003406,30]
[321874093,1712580073282,-500.0,0.0003406,30]
[321874094,1712580073311,-471.12894184,0.0003406,30]
[321874095,1712580073339,-500.0,0.0003406,30]
[321874096,1712580073369,-500.0,0.0003406,30]
[321874097,1712580073399,-500.0,0.0003406,30]
[321874098,1712580073427,-529.93084197,0.0003406,30]
[321874099,1712580073458,-500.0,0.0003406,30]
[321874100,1712580073486,-500.0,0.0003406,30]
[321874101,1712580073515,-500.0,0.0003406,30]
[321874102,1712580073543,-266.54964931,0.0003406,30]
[321874103,1712580073570,-500.0,0.0003406,30]
[321874104,1712580073599,-500.0,0.0003406,30]
[321874105,1712580073626,-500.0,0.0003406,30]
[321874106,1712580073656,-500.0,0.0003406,30]
[321874107,1712580073689,-500.0,0.0003406,30]
[321874108,1712580073916,-500.0,0.0003406,30]
[321874109,1712580073959,-500.0,0.0003406,30]
[321874110,1712580073988,-500.0,0.0003406,30]
[321874111,1712580074018,-507.59477024,0.0003406,30]
[321874112,1712580074045,-513.81358921,0.0003406,30]
[321874113,1712580074073,-501.64425434,0.0003406,30]
[321874114,1712580074101,-517.08787181,0.0003406,30]
[321874115,1712580074131,-553.27159811,0.0003406,30]
[321874116,1712580074158,-500.0,0.0003406,30]
[321874117,1712580074183,-500.0,0.0003406,30]
[321874118,1712580074212,-500.0,0.0003406,30]
[321874119,1712580074237,-500.0,0.0003406,30]
[321874120,1712580074264,-500.0,0.0003406,30]
[321874121,1712580074290,-530.23153945,0.0003406,30]
[321874122,1712580074317,-521.11209877,0.0003406,30]
[321874123,1712580074343,-518.73809293,0.0003406,30]
[321874124,1712580074370,-500.0,0.0003406,30]
[321874125,1712580074397,-516.29379911,0.0003406,30]
[321874126,1712580074422,-500.0,0.0003406,30]
[321874127,1712580074449,-500.0,0.0003406,30]
[321874128,1712580074475,-522.43828298,0.0003406,30]
[321874129,1712580074502,-500.0,0.0003406,30]
[321874130,1712580074532,-500.0,0.0003406,30]
[321874131,1712580074558,-500.0,0.0003406,30]
[321874132,1712580074584,-500.0,0.0003406,30]
[321874133,1712580074609,-500.0,0.0003406,30]
[321874134,1712580074635,-500.0,0.0003406,30]
[321874135,1712580074661,-500.0,0.0003406,30]
[321874136,1712580074688,-474.77922331,0.0003406,30]
[321874137,1712580074715,-500.0,0.0003406,30]
[321874138,1712580074742,-500.0,0.0003406,30]
[321874139,1712580074769,-500.0,0.0003406,30]
[321874140,1712580074795,-500.0,0.0003406,30]
[321874141,1712580074822,-500.0,0.0003406,30]
[321874142,1712580074849,-500.0,0.0003406,30]
[321874143,1712580074874,-501.9512769,0.0003406,30]
[321874144,1712580074900,-500.0,0.0003406,30]
[321874145,1712580074926,-470.35507311,0.0003406,30]
[321874146,1712580074953,-511.74757738,0.0003406,30]
[321874147,1712580074980,-500.0,0.0003406,30]
[321874148,1712580075006,-500.0,0.0003406,30]
[321874149,1712580075035,-500.0,0.0003406,30]
[321874150,1712580075062,-500.0,0.0003406,30]
[321874151,1712580075090,-500.0,0.0003406,30]
[321874152,1712580075117,-563.62741624,0.0003406,30]
[321874153,1712580075143,-500.0,0.0003406,30]
[321874154,1712580075169,-510.03735364,0.0003406,30]
[321874155,1712580075195,-500.0,0.0003406,30]
[321874156,1712580075223,-500.0,0.0003406,30]
[321874157,1712580075250,-500.0,0.0003406,30]
[321874158,1712580075277,-526.58715785,0.0003406,30]
[321874159,1712580075305,-500.0,0.0003406,30]
[321874160,1712580075332,-500.0,0.0003406,30]
[321874161,1712580075362,-500.0,0.0003406,30]
[321874162,1712580075391,-500.0,0.0003406,30]
[321874163,1712580075419,-490.43831333,0.0003406,30]
[321874164,1712580075448,-500.0,0.0003406,30]
[321874165,1712580075478,-500.0,0.0003406,30]
[321874166,1712580075511,-530.76939629,0.0003406,30]
[321874167,1712580075540,-500.0,0.0003406,30]
[321874168,1712580075567,-522.08095036,0.0003406,30]
[321874169,1712580075594,-500.0,0.0003406,30]
[321874170,1712580075621,-500.0,0.0003406,30]
[321874171,1712580075649,-500.0,0.0003406,30]
[321874172,1712580075678,-500.0,0.0003406,30]
[321874173,1712580075707,-548.08826076,0.0003406,30]
[321874174,1712580075733,-500.0,0.0003406,30]
[321874175,1712580075763,-500.0,0.0003406,30]
[321874176,1712580075789,-500.0,0.0003406,30]
[321874177,1712580075815,-500.0,0.0003406,30]
[321874178,1712580075842,-529.8638032,0.0003406,30]
[321874179,1712580075868,-500.0,0.0003406,30]
[321874180,1712580075893,-500.0,0.0003406,30]
[321874181,1712580075921,-500.0,0.0003406,30]
[321874182,1712580075954,-492.23687986,0.0003406,30]
[321874183,1712580075980,-518.32990347,0.0003406,30]
[321874184,1712580076006,-500.0,0.0003406,30]
[321874185,1712580076034,-500.0,0.0003406,30]
[321874186,1712580076061,-521.29450643,0.0003406,30]
[321874187,1712580076089,-500.0,0.0003406,30]
[321874188,1712580076116,-500.0,0.0003406,30]
[321874189,1712580076142,-500.0,0.0003406,30]
[321874190,1712580076171,-500.0,0.0003406,30]
[321874191,1712580076199,-500.0,0.0003406,30]
[321874192,1712580076229,-500.0,0.0003406,30]
[321874193,1712580076256,-500.0,0.0003406,30]
[321874194,1712580076281,-500.0,0.0003406,30]
[321874195,1712580076306,-500.0,0.0003406,30]
[321874196,1712580076332,-500.0,0.0003406,30]
[321874197,1712580076359,-500.0,0.0003406,30]
[321874198,1712580076385,-500.0,0.0003406,30]
[321874199,1712580076410,-558.75726634,0.0003406,30]
[321874200,1712580076435,-500.0,0.0003406,30]
[321874201,1712580076464,-500.0,0.0003406,30]
[321874202,1712580076489,-526.69762762,0.0003406,30]
[321874203,1712580076693,-515.99770505,0.0003406,30]
[321874204,1712580076722,-500.0,0.0003406,30]
[321874205,1712580076748,-500.0,0.0003406,30]
[321874206,1712580076775,-500.0,0.0003406,30]
[321874207,1712580076800,-500.0,0.0003406,30]
[321874208,1712580076830,-500.0,0.0003406,30]
[321874209,1712580076858,-538.26233197,0.0003406,30]
[321874210,1712580076885,-500.0,0.0003406,30]
[321874211,1712580076911,-518.10437459,0.0003406,30]
[321874212,1712580076937,-500.0,0.0003406,30]
[321874213,1712580076963,-500.0,0.0003406,30]
[321874214,1712580076988,-500.0,0.0003406,30]
[321874215,1712580077014,-500.0,0.0003406,30]
[321874216,1712580077045,-500.0,0.0003406,30]
[321874217,1712580077070,-516.76847394,0.0003406,30]
[321874218,1712580077098,-500.0,0.0003406,30]
[321874219,1712580077126,-504.13823905,0.0003406,30]
[321874220,1712580077151,-500.0,0.0003406,30]
[321874221,1712580077177,-500.0,0.0003406,30]
[321874222,1712580077205,-500.0,0.0003406,30]
[321874223,1712580077231,-500.0,0.0003406,30]
[321874224,1712580077257,-500.0,0.0003406,30]
[321874225,1712580077282,-500.0,0.0003406,30]
[321874226,1712580077307,-519.60627563,0.0003406,30]
[321874227,1712580077332,-500.0,0.0003406,30]
[321874228,1712580077358,-500.0,0.0003406,30]
[321874229,1712580077383,-500.0,0.0003406,30]
[321874230,1712580077408,-500.0,0.0003406,30]
[321874231,1712580077433,-500.0,0.0003406,30]
[321874232,1712580077460,-500.0,0.0003406,30]
[321874233,1712580077485,-500.0,0.0003406,30]
[321874234,1712580077510,-500.0,0.0003406,30]
[321874235,1712580077535,-500.0,0.0003406,30]
[321874236,1712580077560,-500.0,0.0003406,30]
[321874237,1712580077584,-500.0,0.0003406,30]
[321874238,1712580077609,-500.0,0.0003406,30]
[321874239,1712580077634,-500.0,0.0003406,30]
[321874240,1712580077659,-500.0,0.0003406,30]
[321874241,1712580077685,-156.4716711,0.0003406,30]
[321874242,1712580077709,-500.0,0.0003406,30]
[321874243,1712580077735,-500.0,0.0003406,30]
[321874244,1712580077759,-506.04482817,0.0003406,30]
[321874245,1712580077785,-500.0,0.0003406,30]
[321874246,1712580077810,-500.0,0.0003406,30]
[321874247,1712580077835,-500.0,0.0003406,30]
[321874248,1712580077860,-193.03968794,0.0003406,30]
[321874249,1712580077885,-546.68,0.0003406,30]
[321874250,1712580077909,-546.68,0.0003406,30]
[321874251,1712580077935,-500.0,0.0003406,30]
[321874252,1712580077960,-546.68,0.0003406,30]
[321874253,1712580077987,-500.0,0.0003406,30]
[321874254,1712580078013,-546.68,0.0003406,30]
[321874255,1712580078041,-546.68,0.0003406,30]
[321874256,1712580078067,-500.0,0.0003406,30]
[321874257,1712580078095,-546.68,0.0003406,30]
[321874258,1712580078121,-500.0,0.0003406,30]
[321874259,1712580078147,-500.0,0.0003406,30]
[321874260,1712580078173,-546.68,0.0003406,30]
[321874261,1712580078198,-546.68,0.0003406,30]
[321874262,1712580078224,-546.68,0.0003406,30]
[321874263,1712580078249,-546.68,0.0003406,30]
[321874264,1712580078274,-546.68,0.0003406,30]
[321874265,1712580078299,-546.68,0.0003406,30]
[321874266,1712580078324,-546.68,0.0003406,30]
[321874267,1712580078349,-546.68,0.0003406,30]
[321874268,1712580078374,-546.68,0.0003406,30]
[321874269,1712580078400,-546.68,0.0003406,30]
[321874270,1712580078425,-546.68,0.0003406,30]
[321874271,1712580078450,-546.68,0.0003406,30]
[321874272,1712580078476,-546.68,0.0003406,30]
[321874273,1712580078501,-546.68,0.0003406,30]
[321874274,1712580078527,-546.68,0.0003406,30]
[321874275,1712580078552,-546.68,0.0003406,30]
[321874276,1712580078577,-546.68,0.0003406,30]
[321874277,1712580078601,-258.96464945,0.0003406,30]
[321874278,1712580078626,-546.71988066,0.0003406,30]
[321874279,1712580078655,-500.0,0.0003406,30]
[321874280,1712580078679,-519.76537216,0.0003406,30]
[321874281,1712580078706,-500.0,0.0003406,30]
[321874282,1712580078731,-500.0,0.0003406,30]
[321874283,1712580078756,-500.0,0.0003406,30]
[321874284,1712580078781,-479.38891327,0.0003406,30]
[321874285,1712580078807,-500.0,0.0003406,30]